bitfinex/quotes_ETHUSD_20220219
["timestamp","ask_amount","ask_price","bid_price","bid_amount"]
[1645273784909,0.78553326,2719.0,2718.5,1.83956]
[1645273785109,0.88045083,2719.3,2718.5,1.83956]
[1645273785310,0.88025083,2719.4,2718.5,1.83956]
[1645273785910,0.48025083,2719.4,2718.5,1.83956]
[1645273786113,8.7402,2719.6,2718.6,0.91977]
[1645273786312,0.66825857,2719.4,2718.8,0.91977]
[1645273786511,0.66825857,2719.4,2718.8,2.75914]
[1645273786720,0.66825857,2719.4,2718.8,1.83937]
[1645273787967,0.66825857,2719.4,2718.9,1.8394193]
[1645273788258,0.66825857,2719.4,2718.6,1.84291782]
[1645273788457,0.91989,2719.3,2718.6,1.8396]
[1645273788857,0.91989,2719.3,2718.6,1.84291775]
[1645273789059,0.66825857,2719.4,2718.7,0.9198028]
[1645273789258,0.66825857,2719.4,2718.8,0.91981]
[1645273789659,0.9198,2719.6,2718.8,0.91981]
[1645273789866,6.3347,2719.7,2718.8,0.91981]
[1645273790060,6.3347,2719.7,2718.9,0.9197]
[1645273790061,1.1449,2719.7,2718.9,0.9197]
[1645273790260,5.09114663,2720.1,2718.9,4.4197]
[1645273790261,1.1875,2720.1,2718.9,4.4197]
[1645273790465,2.4291,2720.1,2719.1,0.91954]
[1645273790660,2.4291,2720.1,2719.1,10.86818]
[1645273790867,2.4291,2720.1,2719.5,0.85123739]
[1645273791362,0.80118405,2719.4,2719.3,1.83869]
[1645273791560,0.80118405,2719.4,2719.2,0.91937]
[1645273792216,0.80118405,2719.4,2718.9,0.2392]
[1645273793618,0.80118405,2719.4,2718.9,1.1589107]
[1645273794820,0.80118405,2719.4,2718.9,0.2392]
[1645273796057,0.80118405,2719.4,2718.9,1.15894]
[1645273796457,0.80118405,2719.4,2718.9,2.0786472]
[1645273796656,0.72646786,2719.3,2718.9,0.2392]
[1645273798059,0.64064055,2719.1,2718.9,0.2392]
[1645273798260,0.72247122,2719.0,2718.9,0.2392]
[1645273799711,0.64064055,2719.1,2718.9,0.2392]
[1645273800012,0.64064055,2719.1,2718.4,0.003318]
[1645273800013,4.22194886,2719.0,2718.4,0.003318]
[1645273800210,0.72194886,2718.9,2718.4,0.003318]
[1645273800414,3.5,2718.8,2718.4,0.003318]
[1645273800610,1.89674886,2718.9,2717.9,0.1837]
[1645273800611,0.89542219,2718.3,2717.9,0.1837]
[1645273800811,0.89542219,2718.3,2718.2,0.0033183]
[1645273801115,1.61143258,2718.3,2718.2,0.0033183]
[1645273801710,1.61143258,2718.3,2717.9,0.1837]
[1645273801910,0.89542219,2718.3,2717.9,0.1837]
[1645273802511,0.89542219,2718.3,2717.7,0.00331885]
[1645273802719,0.71402017,2718.2,2717.7,0.00331885]
[1645273802969,0.71402017,2718.2,2717.2,0.0026629]
[1645273802970,0.89592017,2718.2,2717.2,0.0026629]
[1645273803163,0.89592017,2718.2,2717.5,0.00331916]
[1645273803164,0.71402017,2718.1,2717.5,0.00331916]
[1645273803565,0.9204347,2718.0,2717.5,0.00331916]
[1645273803764,3.43619698,2717.9,2717.5,0.00331916]
[1645273803963,3.13619698,2717.9,2717.5,0.00331916]
[1645273804161,3.13619698,2717.9,2717.2,0.0026629]
[1645273804162,1.0,2717.8,2717.2,0.0026629]
[1645273804361,0.8599363,2717.3,2717.2,0.00598242]
[1645273804768,2.10585,2717.7,2717.2,0.00598242]
[1645273805364,2.10585,2717.7,2717.2,0.0026629]
[1645273805567,2.10585,2717.7,2717.3,0.00082983]
[1645273805969,1.63491108,2717.6,2717.3,0.00082983]
[1645273806165,0.71441108,2717.5,2717.3,0.00082983]
[1645273806565,3.5,2717.4,2717.2,0.0026629]
[1645273806818,3.5,2717.4,2717.3,0.00082985]
[1645273807017,4.21454643,2717.4,2717.3,0.00082985]
[1645273807614,2.43810171,2717.4,2717.3,0.00082985]
[1645273807813,2.43810171,2717.4,2717.2,0.0026629]
[1645273808014,2.43810171,2717.4,2717.2,0.00349276]
[1645273808015,1.72355528,2717.4,2717.2,0.00349276]
[1645273808915,0.80301528,2717.4,2717.2,0.0026629]
[1645273809115,0.31440436,2717.3,2717.2,0.0026629]
[1645273809316,0.62880872,2717.3,2717.2,0.00349278]
[1645273810115,0.62880872,2717.3,2717.2,0.0026629]
[1645273811362,0.00057185,2717.0,2716.9,0.00199982]
[1645273811558,0.00057185,2717.0,2716.7,0.00332007]
[1645273811962,0.00057185,2717.0,2716.7,0.00531989]
[1645273812561,0.00057185,2717.0,2716.7,0.00199982]
[1645273812762,0.00057185,2717.0,2716.7,0.00083002]
[1645273813568,0.79219765,2716.9,2716.7,0.00083002]
[1645273813769,0.79219765,2716.9,2716.3,0.00199982]
[1645273814064,0.00057185,2717.0,2716.3,0.00199982]
[1645273814065,0.00057185,2717.0,2716.7,0.00083002]
[1645273814909,0.00057185,2717.0,2716.3,0.92258982]
[1645273815309,0.00057185,2717.0,2716.7,0.00083002]
[1645273816138,0.00057185,2717.0,2716.3,3.50199982]
[1645273816312,0.00057185,2717.0,2716.7,0.00083002]
[1645273816738,3.60057185,2717.0,2716.7,0.00083002]
[1645273817321,3.60057185,2717.0,2716.5,0.00199982]
[1645273817517,3.60057185,2717.0,2716.7,0.00083002]
[1645273817717,4.48296124,2717.0,2716.7,0.00083002]
[1645273818360,3.60057185,2717.0,2716.7,0.00083002]
[1645273818559,3.60057185,2717.0,2716.6,5.3409789]
[1645273818762,3.60057185,2717.0,2716.7,0.82915167]
[1645273818963,3.60057185,2717.0,2716.9,5.0]
[1645273819258,3.60057185,2717.0,2716.9,9.85732165]
[1645273819458,0.92016,2718.5,2717.1,0.92011]
[1645273819660,1.2044,2718.6,2717.2,4.20853489]
[1645273819861,1.2044,2718.6,2717.3,12.04812856]
[1645273819862,0.71391724,2718.5,2717.3,12.04812856]
[1645273820160,0.71391724,2718.5,2717.5,5.0]
[1645273820359,1.2044,2718.6,2717.7,0.91997]
[1645273820562,1.2044,2718.6,2718.0,0.91995]
[1645273820758,1.2044,2718.6,2718.1,0.9199289]
[1645273822019,1.2044,2718.6,2718.2,0.9199252]
[1645273822619,1.2044,2718.6,2718.0,4.5995878]
[1645273822821,1.2044,2718.6,2718.0,1.8398578]
[1645273823121,1.2044,2718.6,2717.9,0.92013]
[1645273823527,1.2044,2718.6,2717.6,0.92018]
[1645273823721,0.92019,2718.4,2717.8,0.00331879]
[1645273823924,0.73675231,2718.2,2717.8,0.00331879]
[1645273824331,1.2405,2719.2,2717.8,0.92346879]
[1645273824522,1.2405,2719.2,2717.6,5.0]
[1645273824523,0.31440436,2718.2,2718.0,1.8397]
[1645273824821,0.62880872,2718.2,2718.0,2.75957]
[1645273825219,0.62880872,2718.2,2718.1,0.91988]
[1645273826261,0.62880872,2718.2,2718.0,3.6794382]
[1645273826465,0.62880872,2718.2,2718.0,2.7595682]
[1645273827664,0.62880872,2718.2,2718.0,3.6796182]
[1645273827860,4.22880872,2718.2,2718.0,3.6796182]
[1645273828260,4.22880872,2718.2,2718.0,1.8397]
[1645273829313,4.22880872,2718.2,2718.0,3.6797969]
[1645273829513,3.91440436,2718.2,2718.0,3.6797969]
[1645273829813,3.91440436,2718.2,2717.9,1.83974]
[1645273829814,3.6,2718.2,2717.9,1.83974]
[1645273830018,0.62880872,2718.1,2717.9,1.83974]
[1645273830415,0.62880872,2718.1,2717.7,1.84025]
[1645273831212,1.51274493,2718.1,2717.7,1.84025]
[1645273831412,0.62880872,2718.1,2717.7,1.84025]
[1645273832615,1.340914,2718.1,2717.7,1.84025]
[1645273833063,1.340914,2718.1,2717.7,2.7603796]
[1645273833263,1.340914,2718.1,2717.8,0.92007]
[1645273833665,0.62880872,2718.1,2717.8,2.76]
[1645273834169,0.62880872,2718.1,2717.8,3.6800687]
[1645273834365,0.62880872,2718.1,2717.9,1.84008]
[1645273834563,0.62880872,2718.1,2717.9,0.92006]
[1645273834963,3.6,2718.2,2717.9,0.92006]
[1645273835166,0.62880872,2718.0,2717.9,0.92006]
[1645273835365,0.62880872,2718.0,2717.8,1.84007]
[1645273835566,3.6,2718.2,2717.8,1.84007]
[1645273835567,3.6,2718.2,2718.0,0.04661533]
[1645273835767,3.6,2718.2,2718.0,0.96651533]
[1645273836164,3.55,2718.2,2718.0,0.96651533]
[1645273836565,3.55,2718.2,2718.0,1.88639803]
[1645273837219,3.55,2718.2,2718.0,2.80628803]
[1645273837718,3.55,2718.2,2718.0,5.52232421]
[1645273838517,3.55,2718.2,2718.0,4.64607803]
[1645273839918,3.55,2718.2,2718.0,5.45364174]
[1645273840563,3.55,2718.2,2718.0,4.64607803]
[1645273840964,3.55,2718.2,2718.1,1.74130965]
[1645273841165,0.1819,2719.2,2718.3,0.91978]
[1645273841369,0.72461818,2719.1,2718.7,0.91971]
[1645273841568,0.80118405,2719.4,2718.7,0.91971]
[1645273841765,1.45077446,2719.3,2718.7,0.91971]
[1645273841969,1.45077446,2719.3,2718.8,0.82120162]
[1645273841970,0.72619755,2719.3,2718.8,0.82120162]
[1645273842364,0.80118405,2719.4,2718.9,11.22]
[1645273842568,0.80118405,2719.4,2719.0,0.82133142]
[1645273843464,0.80118405,2719.4,2719.2,0.91955]
[1645273843866,0.80118405,2719.4,2719.2,1.8391501]
[1645273844316,0.80118405,2719.4,2719.2,0.9196001]
[1645273844620,0.80118405,2719.4,2719.2,1.8392101]
[1645273845815,0.80118405,2719.4,2719.2,2.7588201]
[1645273847319,0.80118405,2719.4,2719.2,1.8392101]
[1645273848361,0.80118405,2719.4,2719.2,2.7588101]
[1645273849665,0.80118405,2719.4,2719.2,3.5417395]
[1645273850066,0.80118405,2719.4,2719.3,16.749]
[1645273850263,0.69468724,2720.8,2719.4,5.0]
[1645273850264,0.1819,2720.8,2719.4,5.0]
[1645273850463,0.1819,2720.8,2719.9,0.91927]
[1645273850464,0.70475417,2720.3,2719.9,0.91927]
[1645273850665,0.70475417,2720.3,2719.9,0.91929]
[1645273850862,0.70475417,2720.3,2719.9,1.8031927]
[1645273851062,0.70475417,2720.3,2719.9,0.91929]
[1645273851463,1.1507,2720.7,2720.0,1.8385736]
[1645273851717,0.70466785,2720.6,2720.0,1.8385736]
[1645273851918,1.1507,2720.7,2720.1,0.91912]
[1645273852514,1.80408253,2720.7,2720.2,0.91925]
[1645273852921,1.80408253,2720.7,2720.2,3.6768385]
[1645273853114,0.70483885,2720.6,2720.3,0.91927]
[1645273853315,1.80408253,2720.7,2720.3,0.91927]
[1645273853716,0.70378115,2720.6,2720.3,0.91927]
[1645273854215,0.70378115,2720.6,2720.3,1.83853]
[1645273854416,0.70378115,2720.6,2720.1,0.9193479]
[1645273854616,0.70378115,2720.6,2720.0,0.91929]
[1645273854824,0.70378115,2720.6,2720.2,0.91931]
[1645273855462,0.70378115,2720.6,2719.9,1.8386488]
[1645273855661,0.70378115,2720.6,2719.8,1.83861]
[1645273855871,0.70378115,2720.6,2719.7,0.91938]
[1645273856064,0.70378115,2720.6,2719.6,0.1837]
[1645273856268,1.48242532,2719.5,2719.1,6.60906768]
[1645273856462,1.48242532,2719.5,2719.1,0.55796768]
[1645273856761,1.48242532,2719.5,2719.0,1.8391186]
[1645273856962,2.25372444,2719.5,2719.0,1.8391186]
[1645273857162,2.25372444,2719.5,2719.1,1.83903]
[1645273857367,2.25372444,2719.5,2719.1,2.75858]
[1645273857964,1.48242532,2719.5,2719.1,13.97858]
[1645273858163,1.48242532,2719.5,2719.1,2.75858]
[1645273858568,1.48242532,2719.5,2719.1,2.758542]
[1645273858770,1.48242532,2719.5,2718.6,1.84255776]
[1645273858967,1.48242532,2719.5,2718.6,3.50331776]
[1645273859233,1.48242532,2719.5,2718.6,0.00331776]
[1645273859430,1.48242532,2719.5,2718.5,0.8458375]
[1645273859635,0.88746326,2719.2,2718.5,0.00331788]
[1645273859833,0.88746326,2719.2,2718.7,1.83931]
[1645273860037,0.88746326,2719.2,2718.6,2.7591429]
[1645273860038,0.88746326,2719.2,2718.6,1.8394129]
[1645273860432,1.48242532,2719.5,2718.6,1.8394129]
[1645273860635,1.48242532,2719.5,2718.8,11.22]
[1645273860833,1.48242532,2719.5,2718.9,4.52471015]
[1645273861034,1.48242532,2719.5,2719.1,0.91951]
[1645273861631,2.37435525,2719.5,2719.1,0.91951]
[1645273861832,2.37435525,2719.5,2719.1,1.83902]
[1645273862034,2.37435525,2719.5,2719.2,0.91954]
[1645273862833,2.37435525,2719.5,2719.0,3.6780321]
[1645273863065,1.48242532,2719.5,2719.0,3.6780321]
[1645273863264,5.08242532,2719.5,2719.1,0.91964]
[1645273863468,5.08242532,2719.5,2719.2,0.9195263]
[1645273864463,5.08242532,2719.5,2719.2,1.8391163]
[1645273864664,5.08242532,2719.5,2719.3,0.91952]
[1645273864863,5.08242532,2719.5,2719.3,1.8390339]
[1645273865464,5.08242532,2719.5,2719.3,0.9195139]
[1645273866373,5.08242532,2719.5,2718.7,1.8394067]
[1645273866374,0.69761648,2719.4,2718.7,1.8394067]
[1645273866816,0.89117692,2719.0,2718.7,0.91973]
[1645273867213,0.89117692,2719.0,2718.8,0.91975]
[1645273867414,5.08242532,2719.5,2718.9,0.9197178]
[1645273867615,0.69737249,2719.4,2718.6,1.84278816]
[1645273867817,0.69737249,2719.4,2718.6,1.8394704]
[1645273868017,0.69737249,2719.4,2718.7,0.91974]
[1645273868416,0.69737249,2719.4,2718.8,1.8394322]
[1645273868615,0.69737249,2719.4,2718.8,0.91972]
[1645273868818,5.08242532,2719.5,2718.8,0.91972]
[1645273869016,0.69735836,2719.3,2718.8,0.91972]
[1645273869217,5.08242532,2719.5,2718.8,0.91972]
[1645273869417,5.08242532,2719.5,2718.8,1.839489]
[1645273869418,0.75083315,2719.0,2718.8,1.839489]
[1645273869622,0.75083315,2719.0,2718.8,0.919769]
[1645273871172,0.69731783,2718.9,2718.4,0.00331806]
[1645273871370,1.93361783,2718.9,2718.0,0.04661533]
[1645273871571,0.69731783,2718.8,2718.0,0.96665453]
[1645273871771,0.69731783,2718.8,2718.0,0.04661533]
[1645273871970,0.69731783,2718.8,2718.4,0.00331806]
[1645273872170,1.61741783,2718.8,2718.4,0.00331806]
[1645273872372,0.6931939,2718.6,2718.4,0.00331806]
[1645273872572,0.69731783,2718.5,2718.0,0.04661533]
[1645273872773,0.92014,2718.4,2718.0,0.04661533]
[1645273872975,0.69731783,2718.3,2718.1,0.00331843]
[1645273873371,0.69731783,2718.2,2718.1,0.00331843]
[1645273873771,0.69731783,2718.2,2718.0,0.04661533]
[1645273873976,9.0,2718.1,2717.4,0.2259]
[1645273874214,0.9204,2717.9,2717.6,0.00331897]
[1645273874414,4.19731783,2717.8,2717.6,0.00331897]
[1645273874615,3.5,2717.8,2717.6,0.00331897]
[1645273874820,0.64022741,2717.7,2717.6,0.00331897]
[1645273875020,0.64022741,2717.7,2717.4,0.2259]
[1645273875216,1.10414,2718.2,2717.4,0.2259]
[1645273875418,4.19790933,2718.1,2717.4,0.2259]
[1645273875620,0.69790933,2718.0,2717.4,0.2259]
[1645273876017,0.69790933,2718.0,2717.3,0.00082983]
[1645273876215,0.67384482,2717.4,2717.2,7.49]
[1645273876416,0.82852935,2717.6,2717.5,0.06470264]
[1645273877720,1.2198,2718.0,2717.5,0.06470264]
[1645273878563,0.70162409,2717.6,2717.5,0.06470264]
[1645273880566,2.1401,2718.0,2717.5,0.06470264]
[1645273880774,1.2198,2718.0,2717.5,0.06470264]
[1645273881722,0.81992704,2717.7,2717.5,0.06470264]
[1645273885561,1.74033704,2717.7,2717.5,0.06470264]
[1645273886462,5.34033704,2717.7,2717.5,0.06470264]
[1645273887067,4.41992704,2717.7,2717.5,0.06470264]
[1645273888063,5.34031704,2717.7,2717.5,0.06470264]
[1645273890014,4.41992704,2717.7,2717.5,0.06470264]
[1645273891317,5.34032704,2717.7,2717.5,0.06470264]
[1645273892115,3.5,2717.6,2717.5,0.06470264]
[1645273892314,5.34099,2717.6,2717.5,0.06470264]
[1645273892815,6.26080694,2717.7,2717.5,0.06470264]
[1645273893480,6.26080694,2717.7,2717.3,0.00082983]
[1645273893481,13.42056,2717.6,2717.3,0.00082983]
[1645273893681,1.84107,2717.5,2717.3,0.00082983]
[1645273894280,1.84107,2717.5,2716.9,0.00199982]
[1645273894479,1.84107,2717.5,2717.3,0.00082985]
[1645273895282,2.76157,2717.5,2717.3,0.00082985]
[1645273895481,0.92052,2717.4,2716.9,0.00199982]
[1645273895682,0.92052,2717.4,2717.3,0.00082985]
[1645273895683,1.841,2717.4,2717.3,0.00082985]
[1645273896714,0.0008,2717.1,2716.9,0.00199982]
[1645273896914,0.64678662,2717.0,2716.8,0.00100986]
[1645273897920,0.64678662,2717.0,2716.6,0.92249312]
[1645273898721,0.64678662,2717.0,2716.6,0.00199982]
[1645273898933,0.64678662,2717.0,2716.4,0.00300985]
[1645273899124,0.64678662,2717.0,2716.4,0.00199982]
[1645273899325,1.56738662,2717.0,2716.4,0.00199982]
[1645273899522,0.92072,2716.8,2716.4,0.00199982]
[1645273899722,0.92072,2716.8,2716.2,7.49199982]
[1645273899922,0.81323098,2716.4,2716.2,7.49199982]
[1645273900122,0.81323098,2716.4,2716.2,7.49]
[1645273902171,1.1885,2716.8,2716.2,7.49]
[1645273902367,1.1885,2716.8,2716.2,7.49199982]
[1645273902968,1.1885,2716.8,2716.2,8.41262602]
[1645273903372,1.1885,2716.8,2716.2,7.49199982]
[1645273903373,0.67924722,2716.6,2716.2,7.49199982]
[1645273903675,0.67924722,2716.6,2716.2,7.49]
[1645273904219,0.67924722,2716.6,2716.3,0.00083015]
[1645273905016,0.67924722,2716.6,2716.2,7.49]
[1645273905218,1.59994722,2716.6,2716.2,7.49]
[1645273905418,1.59994722,2716.6,2716.3,0.00083014]
[1645273905817,0.92075,2716.5,2716.3,0.00083014]
[1645273906216,0.92075,2716.5,2716.0,0.0141671]
[1645273906418,0.87932462,2716.1,2716.0,0.0141671]
[1645273906619,1.84151,2716.5,2716.0,0.0141671]
[1645273906620,1.1374,2716.4,2716.0,0.0141671]
[1645273907629,1.7687827,2716.4,2716.0,0.0141671]
[1645273907818,1.7687827,2716.4,2716.1,0.00083021]
[1645273908675,1.7687827,2716.4,2716.0,0.0141671]
[1645273908871,1.7687827,2716.4,2716.1,0.0008302]
[1645273909173,1.7687827,2716.4,2716.1,1.8421661]
[1645273909972,5.3687827,2716.4,2716.1,0.9206759]
[1645273910176,4.7374,2716.4,2716.1,0.9215061]
[1645273910375,4.7374,2716.4,2716.2,0.83447985]
[1645273910773,3.6,2716.4,2716.1,0.0008302]
[1645273910971,3.6,2716.4,2716.0,0.8486288]
[1645273911172,3.6,2716.4,2716.2,1.8411842]
[1645273911373,3.6,2716.4,2716.2,0.00083018]
[1645273912219,3.6,2716.4,2716.1,0.83446428]
[1645273912620,3.6,2716.4,2716.2,0.00083018]
[1645273913421,3.6,2716.4,2716.2,0.83446428]
[1645273913719,3.6,2716.4,2716.2,0.83529446]
[1645273913920,3.6,2716.4,2716.3,0.83446428]
[1645273914119,3.6,2716.4,2716.2,0.00083018]
[1645273914721,4.00660289,2716.2,2716.1,0.83446428]
[1645273915319,4.00660289,2716.2,2716.1,0.73446428]
[1645273916868,2.33873282,2716.2,2716.1,0.73446428]
[1645273917668,2.33873282,2716.2,2716.1,1.65509428]
[1645273917869,2.33873282,2716.2,2716.1,2.29078763]
[1645273918071,0.0008,2717.1,2716.3,1.84077]
[1645273918271,0.0008,2717.1,2716.5,11.22]
[1645273918466,0.0008,2717.1,2716.6,11.749]
[1645273918665,0.0008,2717.1,2716.6,2.23415525]
[1645273918868,0.0008,2717.1,2716.6,1.53530616]
[1645273919066,0.0008,2717.1,2716.8,0.92027]
[1645273919319,0.0008,2717.1,2716.8,1.84057]
[1645273919521,0.0008,2717.1,2716.9,0.08611616]
[1645273919725,0.0008,2717.1,2716.9,1.00639616]
[1645273920126,0.0008,2717.1,2716.9,5.60764196]
[1645273920722,0.0008,2717.1,2717.0,3.58611616]
[1645273920723,3.6008,2717.1,2717.0,3.58611616]
[1645273921121,3.6008,2717.1,2717.0,0.08611616]
[1645273921322,3.6008,2717.1,2717.0,1.92661616]
[1645273921721,3.6008,2717.1,2717.0,1.8405]
[1645273923473,2.25697961,2717.1,2717.0,3.49640234]
[1645273923670,1.1401,2718.1,2717.2,11.22]
[1645273923870,1.1401,2718.1,2717.0,3.85526477]
[1645273923871,1.1401,2718.1,2717.6,0.92005]
[1645273924268,1.1401,2718.1,2717.6,1.84011]
[1645273924870,0.73847579,2718.0,2717.6,1.84011]
[1645273925068,0.73847579,2718.0,2717.7,0.92007]
[1645273925269,1.1401,2718.1,2717.7,0.92007]
[1645273925469,1.1401,2718.1,2717.7,1.8401657]
[1645273925668,1.1401,2718.1,2717.7,0.9200957]
[1645273926269,1.1401,2718.1,2717.8,0.92008]
[1645273926468,1.1401,2718.1,2717.9,0.9200436]
[1645273926715,0.81196124,2718.2,2717.9,0.9200436]
[1645273926916,0.81196124,2718.2,2717.6,1.84013]
[1645273927117,0.81196124,2718.2,2717.4,0.00257424]
[1645273927622,0.81196124,2718.2,2717.4,1.84291404]
[1645273927623,1.167,2718.1,2717.4,1.84291404]
[1645273927818,1.167,2718.1,2717.5,0.92015]
[1645273928217,1.167,2718.1,2717.6,0.92012]
[1645273928919,0.69468724,2718.6,2717.6,0.92012]
[1645273929218,0.69468724,2718.6,2717.7,1.83993]
[1645273929219,1.87628724,2718.6,2717.7,1.83993]
[1645273929416,1.87628724,2718.6,2717.8,0.92002]
[1645273929621,1.1816,2718.6,2717.8,0.92002]
[1645273930322,1.1816,2718.6,2718.0,0.91996]
[1645273930323,0.79305257,2718.2,2718.0,0.91996]
[1645273930566,1.1816,2718.6,2718.0,0.91996]
[1645273931465,0.72117658,2718.3,2718.0,1.8399248]
[1645273931666,0.72117658,2718.3,2718.1,0.92]
[1645273932268,1.1816,2718.6,2718.1,0.92]
[1645273932468,3.6,2718.3,2718.2,0.91992]
[1645273932872,3.6,2718.3,2718.2,1.8398697]
[1645273933970,1.1714,2719.2,2718.5,0.91973]
[1645273934418,1.1714,2719.2,2718.6,0.83178462]
[1645273934619,1.1714,2719.2,2718.6,2.67114462]
[1645273935019,1.1714,2719.2,2718.6,3.59082462]
[1645273935422,0.74644311,2719.1,2718.7,0.91966]
[1645273935620,0.74644311,2719.1,2718.7,1.83934]
[1645273936519,0.74644311,2719.1,2718.8,2.7588942]
[1645273936725,1.48242532,2719.5,2719.0,0.9195]
[1645273936926,1.48242532,2719.5,2719.1,12.52195557]
[1645273937119,1.48242532,2719.5,2719.1,17.52195557]
[1645273937319,1.48242532,2719.5,2719.2,0.1837]
[1645273937320,1.34971225,2719.5,2719.2,0.1837]
[1645273937519,1.34971225,2719.5,2719.3,12.79214156]
[1645273937720,1.34971225,2719.5,2719.4,0.32543487]
[1645273937982,1.34971225,2719.5,2719.4,1.10292]
[1645273938965,5.6495,2720.6,2719.4,1.10292]
[1645273938966,2.3471,2720.6,2719.5,0.56270949]
[1645273939171,0.72986278,2720.5,2719.9,0.9192585]
[1645273939372,4.6728,2721.1,2719.9,12.66815]
[1645273939565,0.70446012,2721.0,2719.9,12.66815]
[1645273939771,0.70446012,2721.0,2720.8,0.8500481]
[1645273939772,0.70333139,2721.0,2720.8,0.8500481]
[1645273939971,2.02871203,2721.5,2720.8,0.8500481]
[1645273940170,1.1728,2721.5,2720.9,0.91888]
[1645273940368,1.1728,2721.5,2721.0,0.9189]
[1645273940572,1.1289,2721.6,2721.0,0.9189]
[1645273941169,1.1289,2721.6,2721.5,0.63258372]
[1645273941371,1.2174,2722.2,2721.5,0.63258372]
[1645273941372,0.00290909,2721.9,2721.5,0.63258372]
[1645273941567,0.00290909,2721.9,2721.1,0.529]
[1645273941820,0.00290909,2721.9,2720.8,1.83766]
[1645273941821,0.00290909,2721.9,2720.8,0.9190354]
[1645273942420,0.91905,2722.0,2720.8,0.9190354]
[1645273942619,0.0029089,2721.9,2721.3,0.84595339]
[1645273943620,1.91208724,2722.2,2721.3,0.84595339]
[1645273943621,3.6837,2722.1,2721.3,0.84595339]
[1645273943821,0.00290914,2721.9,2721.3,0.84595339]
[1645273944720,3.6837,2722.1,2721.3,0.84595339]
[1645273944921,0.30290914,2721.9,2721.3,0.84595339]
[1645273945322,0.30290914,2721.9,2721.8,0.76821824]
[1645273945566,0.30290914,2721.9,2721.2,0.9188828]
[1645273945970,0.3,2721.9,2721.2,0.9188828]
[1645273946168,0.3029091,2721.9,2721.2,0.9188828]
[1645273946369,0.3029091,2721.9,2721.3,0.91878]
[1645273946574,14.2994,2722.7,2721.5,3.5]
[1645273946769,2.2633,2722.7,2721.4,3.2096241]
[1645273946969,2.2633,2722.7,2721.5,0.7126]
[1645273947175,2.2633,2722.7,2721.8,0.91864]
[1645273947468,2.2633,2722.7,2722.0,0.9185]
[1645273947670,2.2633,2722.7,2722.2,0.9185032]
[1645273948673,2.2633,2722.7,2721.8,1.8371814]
[1645273948875,2.2633,2722.7,2721.6,1.83718]
[1645273949816,2.2633,2722.7,2721.6,3.6744849]
[1645273949817,0.0032053,2722.3,2721.6,3.6744849]
[1645273950616,0.0032053,2722.3,2721.4,1.41040787]
[1645273950822,3.5,2722.6,2721.4,1.41040787]
[1645273950823,3.5,2722.6,2721.4,0.86406176]
[1645273951019,0.00320532,2722.1,2721.4,0.86406176]
[1645273951217,0.00320532,2722.1,2720.9,0.1836]
[1645273951418,3.50320532,2722.1,2720.8,0.1837]
[1645273951616,3.50320532,2722.1,2720.7,0.61885972]
[1645273951617,0.18690532,2722.1,2720.7,0.61885972]
[1645273952022,0.18690532,2722.1,2720.3,1.10277]
[1645273952023,16.22,2721.9,2720.3,1.10277]
[1645273952218,1.10272,2722.1,2721.0,0.76646702]
[1645273952219,4.17230815,2721.8,2721.0,0.76646702]
[1645273952418,0.1837,2721.7,2721.0,0.76646702]
[1645273953065,4.03220478,2722.0,2721.0,0.76646702]
[1645273953066,0.1837,2721.9,2721.0,0.76646702]
[1645273953268,0.91913,2721.7,2721.0,0.76646702]
[1645273953666,0.91913,2721.7,2720.3,0.72987617]
[1645273953667,0.91913,2721.5,2720.3,0.72987617]
[1645273954267,1.83827,2721.5,2720.3,0.72987617]
[1645273954666,1.83827,2721.5,2720.6,0.64455934]
[1645273954869,0.631431,2721.4,2720.6,0.64455934]
[1645273955270,1.83827,2721.5,2720.6,0.64455934]
[1645273955874,1.1797,2721.8,2720.7,0.08611616]
[1645273956073,1.1797,2721.8,2720.8,0.1837]
[1645273956270,1.1797,2721.8,2721.5,0.24887195]
[1645273956473,0.05112805,2721.5,2720.9,1.2130185]
[1645273956717,0.05112805,2721.5,2721.1,1.83736]
[1645273956918,0.05112805,2721.5,2721.2,0.529]
[1645273957120,1.1797,2721.8,2721.2,11.749]
[1645273957419,0.50780124,2721.8,2721.4,2.43070129]
[1645273957626,0.00320456,2722.0,2721.4,3.34932129]
[1645273958021,3.6837,2722.9,2721.6,0.9186781]
[1645273958022,0.1837,2722.9,2721.6,0.9186781]
[1645273958323,4.6725,2723.0,2721.6,0.17799671]
[1645273958324,0.00314607,2722.0,2721.6,0.17799671]
[1645273958520,0.00314607,2722.0,2721.6,2.36615]
[1645273958725,0.00314607,2722.0,2721.6,2.20883465]
[1645273959119,0.00314607,2722.0,2721.6,1.67983465]
[1645273959321,0.75529501,2722.8,2721.6,1.67983465]
[1645273959519,8.1725,2723.0,2721.9,1.43315253]
[1645273959520,0.00314617,2722.0,2721.9,1.43315253]
[1645273960321,0.00314617,2722.0,2721.9,0.91861]
[1645273960576,5.33726,2723.0,2721.6,3.51700465]
[1645273960577,4.41863,2723.0,2721.6,3.51700465]
[1645273960768,0.00314628,2722.1,2721.6,4.43567465]
[1645273961567,3.6836,2722.8,2721.6,4.43567465]
[1645273961767,4.4331938,2722.8,2721.8,0.69204712]
[1645273961968,0.00320527,2722.0,2721.8,0.69204712]
[1645273962370,0.00320527,2722.0,2721.6,4.43567465]
[1645273962573,0.00320527,2722.0,2721.6,3.51700465]
[1645273962768,6.0869938,2722.8,2721.6,4.43568465]
[1645273962971,2.5869938,2722.8,2721.6,4.43568465]
[1645273963170,0.00320522,2722.0,2721.4,4.22919672]
[1645273963570,0.00320522,2722.0,2721.5,0.68479116]
[1645273963975,3.5,2722.5,2721.5,0.68479116]
[1645273964425,0.00320516,2722.0,2721.4,0.55446762]
[1645273964824,0.00320516,2722.0,2721.0,1.83768]
[1645273965224,0.91893,2722.1,2721.0,2.38416171]
[1645273965225,1.83786,2722.1,2721.0,2.38416171]
[1645273965424,1.83786,2722.1,2721.0,3.16513647]
[1645273965627,0.00320489,2722.0,2721.0,3.16513647]
[1645273966126,0.00320489,2722.0,2721.0,2.38416171]
[1645273966332,0.92215489,2722.0,2721.0,2.38416171]
[1645273966531,0.91895,2722.0,2721.1,0.9189097]
[1645273966736,0.92215489,2722.0,2721.1,0.9189097]
[1645273966929,0.00320489,2722.0,2721.1,1.8377997]
[1645273967631,0.1837,2722.1,2721.1,1.8377997]